bitfinex/quotes_ETHUSD_20220119
["timestamp","ask_amount","ask_price","bid_price","bid_amount"]
[1642627973577,0.00113684,3123.9,3123.4,1.06849836]
[1642627973775,0.00113684,3123.9,3123.5,1.06679309]
[1642627973976,0.00113684,3123.9,3123.6,1.06679309]
[1642627974210,0.00113684,3123.9,3123.7,1.06679309]
[1642627974410,0.00113684,3123.9,3123.4,0.00170527]
[1642627974411,0.00113684,3123.9,3123.8,1.06679309]
[1642627974807,0.00113684,3123.9,3123.4,0.00170527]
[1642627975308,0.00113684,3123.9,3123.3,1.06906679]
[1642627975511,0.00113684,3123.9,3123.4,1.06679309]
[1642627975708,0.00113684,3123.9,3123.5,1.06679309]
[1642627975910,0.00113684,3123.9,3123.6,1.06679309]
[1642627976110,0.00113684,3123.9,3123.7,1.06679309]
[1642627976311,0.00113684,3123.9,3123.4,0.00170527]
[1642627976711,0.00113684,3123.9,3123.2,1.06963521]
[1642627976913,0.00113684,3123.9,3123.3,0.0022737]
[1642627977111,0.00113684,3123.9,3123.3,1.06906679]
[1642627977312,0.00113684,3123.9,3123.4,1.06679309]
[1642627977511,0.00113684,3123.9,3123.5,1.06679309]
[1642627977713,0.00113684,3123.9,3123.6,1.06679309]
[1642627977953,0.00113684,3123.9,3123.7,1.06679309]
[1642627978153,0.00113684,3123.9,3123.8,1.06679309]
[1642627978555,0.00113684,3123.9,3123.6,1.06679309]
[1642627978755,0.00113684,3123.9,3123.7,1.06679309]
[1642627978955,0.00113684,3123.9,3123.5,0.14042024]
[1642627978956,0.00113684,3123.9,3123.8,1.06679309]
[1642627979357,1.62529549,3124.1,3123.6,1.06679309]
[1642627979755,0.00170527,3124.0,3123.6,1.06679309]
[1642627980155,0.00113684,3123.9,3123.6,1.06679309]
[1642627983700,0.00113684,3123.9,3123.7,1.06679309]
[1642627983900,0.00113684,3123.9,3123.8,1.06679309]
[1642627984099,1.62643233,3123.9,3123.8,1.06679309]
[1642627984300,1.62643233,3123.9,3123.4,0.00170527]
[1642627984500,0.00113684,3123.9,3123.4,0.00170527]
[1642627984700,0.00113684,3123.9,3123.3,0.0022737]
[1642627984905,0.00113684,3123.9,3123.4,0.00170527]
[1642627985101,0.00113684,3123.9,3123.2,1.06963521]
[1642627985355,0.00113684,3123.9,3123.3,0.1302737]
[1642627985560,0.00113684,3123.9,3123.4,1.06679309]
[1642627985759,0.00113684,3123.9,3123.4,0.00170527]
[1642627985960,0.00113684,3123.9,3123.4,1.06849836]
[1642627986862,0.00113684,3123.9,3123.5,1.06679309]
[1642627987060,0.00113684,3123.9,3123.6,1.06679309]
[1642627987261,0.00113684,3123.9,3123.7,1.06679309]
[1642627987466,0.00113684,3123.9,3123.8,1.06679309]
[1642627987862,0.00113684,3123.9,3123.4,1.06849836]
[1642627988866,0.00113684,3123.9,3123.5,1.06679309]
[1642627989106,0.00113684,3123.9,3123.6,1.06679309]
[1642627989295,0.00113684,3123.9,3123.7,1.06679309]
[1642627989495,0.00113684,3123.9,3123.8,1.06679309]
[1642627989896,0.00113684,3123.9,3123.4,3.8554419]
[1642627990101,0.00113684,3123.9,3123.6,0.80025]
[1642627990300,0.00113684,3123.9,3123.7,1.06679309]
[1642627990902,0.00113684,3123.9,3123.8,1.06679309]
[1642627991102,0.00113684,3123.9,3123.6,1.06679309]
[1642627991302,0.00113684,3123.9,3123.7,1.06679309]
[1642627991502,0.00113684,3123.9,3123.8,1.06679309]
[1642627991706,0.00113684,3123.9,3123.5,1.06679309]
[1642627991903,0.00113684,3123.9,3123.6,1.06679309]
[1642627992102,0.00113684,3123.9,3123.7,1.06679309]
[1642627992302,0.00113684,3123.9,3123.8,1.06679309]
[1642627992506,0.00113684,3123.9,3123.5,1.06679309]
[1642627993755,0.00113684,3123.9,3123.4,2.80801778]
[1642627993954,0.00113684,3123.9,3123.5,1.06679309]
[1642627998298,0.128,3123.8,3123.5,1.06679309]
[1642627998502,1.61961376,3123.7,3123.6,1.06679309]
[1642627998699,1.74761376,3123.7,3123.6,1.06679309]
[1642627998902,2.55,3123.6,3123.4,0.00170527]
[1642627999201,0.128,3123.5,3123.0,0.00397897]
[1642627999599,0.128,3123.5,3122.9,0.00069461]
[1642627999600,0.128,3123.5,3123.1,0.00341055]
[1642627999903,0.128,3123.5,3123.0,0.00397897]
[1642628000350,1.39670721,3123.3,3123.0,0.00397897]
[1642628000554,1.67106061,3123.2,3123.0,0.00397897]
[1642628003051,1.1573,3123.6,3123.0,0.00397897]
[1642628006303,2.04267747,3123.5,3123.0,0.00397897]
[1642628009456,1.1573,3123.6,3123.0,0.00397897]
[1642628010659,1.96349211,3123.3,3123.0,0.00397897]
[1642628011072,3.01089211,3123.3,3123.0,0.00397897]
[1642628011263,0.128,3123.2,3123.0,0.00397897]
[1642628012299,1.3385,3123.2,3123.0,0.00397897]
[1642628012503,2.7,3123.1,3122.9,0.00069461]
[1642628012805,0.128,3123.0,3122.9,0.00069461]
[1642628013003,0.128,3123.1,3122.9,0.00069461]
[1642628013804,1.4933586,3122.4,3122.1,1.6243024]
[1642628014007,2.27036438,3122.2,3122.1,1.6243024]
[1642628015353,1.4933586,3122.4,3122.1,1.6243024]
[1642628015556,0.128,3123.1,3122.1,1.6243024]
[1642628015757,0.128,3123.1,3122.2,0.00454739]
[1642628016858,2.09390387,3122.5,3122.2,1.61606681]
[1642628017058,3.61776672,3122.5,3122.2,1.61606681]
[1642628017258,3.61776672,3122.5,3122.3,0.00397896]
[1642628017457,0.128,3123.1,3122.3,0.00397896]
[1642628018061,0.428,3123.1,3122.3,1.61549838]
[1642628018259,0.3,3123.1,3122.3,1.61549838]
[1642628018460,0.3,3123.1,3122.4,0.00341054]
[1642628018461,2.33059793,3122.9,3122.4,0.00341054]
[1642628019306,2.33059793,3122.9,3122.4,0.91000413]
[1642628019807,2.33059793,3122.9,3122.5,0.00284212]
[1642628025349,2.33059793,3122.9,3122.5,0.90943571]
[1642628025556,6.34476286,3123.2,3122.5,0.90943571]
[1642628025754,2.37906286,3123.2,3122.6,0.00227369]
[1642628028110,1.77890396,3123.1,3122.6,0.00227369]
[1642628029219,1.2105,3123.2,3122.7,0.128]
[1642628029414,1.2105,3123.2,3122.8,0.90659359]
[1642628029614,1.2105,3123.2,3122.8,0.90773044]
[1642628029814,1.2105,3123.2,3122.9,0.90659359]
[1642628030014,1.2105,3123.2,3123.0,0.90659359]
[1642628030213,1.2105,3123.2,3122.8,0.00113685]
[1642628030214,1.2105,3123.2,3123.1,0.90659359]
[1642628030453,6.80450063,3123.7,3123.1,0.90659359]
[1642628030653,0.00113685,3123.2,3122.8,4.3223997]
[1642628030854,0.00113685,3123.2,3122.8,1.61265627]
[1642628031054,0.00113685,3123.2,3122.8,0.00113685]
[1642628031257,0.00113685,3123.2,3122.8,1.61265627]
[1642628032258,0.00113685,3123.2,3122.9,1.90384609]
[1642628032457,0.00113685,3123.2,3122.9,2.70428609]
[1642628033856,0.00113685,3123.2,3122.9,4.31580551]
[1642628034604,0.00113685,3123.2,3122.9,0.80044]
[1642628034802,0.00113685,3123.2,3122.9,2.41195942]
[1642628036005,0.00113685,3123.2,3122.9,0.80044]
[1642628036210,0.00113685,3123.2,3122.9,2.41195942]
[1642628037007,0.00113685,3123.2,3123.0,1.61151942]
[1642628037408,0.00113685,3123.2,3122.8,0.12913685]
[1642628039056,0.00113685,3123.2,3122.8,0.00113685]
[1642628039453,0.00113685,3123.2,3122.6,1.61151942]
[1642628039454,0.00113685,3123.2,3122.7,0.00170527]
[1642628041156,0.00113685,3123.2,3122.6,0.00227369]
[1642628041705,0.00113685,3123.2,3122.6,1.61379311]
[1642628041905,0.00113685,3123.2,3122.6,0.00227369]
[1642628042108,0.00113685,3123.2,3122.7,0.00170527]
[1642628042304,0.00113685,3123.2,3122.6,0.00227369]
[1642628042511,0.00113685,3123.2,3122.3,2.31869103]
[1642628042512,0.28724751,3122.5,3122.3,0.41397103]
[1642628042807,0.00056842,3122.6,3122.4,0.00170527]
[1642628043207,0.00056842,3122.6,3122.3,0.00227369]
[1642628043406,0.00056842,3122.6,3122.4,0.80055]
[1642628043808,0.00056842,3122.6,3122.5,0.00113685]
[1642628044008,0.00056842,3122.6,3122.5,2.73558215]
[1642628044409,0.00056842,3122.6,3122.5,0.00113685]
[1642628046450,0.00056842,3122.6,3122.4,0.5115355]
[1642628046649,0.00056842,3122.6,3122.5,0.5115355]
[1642628046850,0.00056842,3122.6,3122.5,0.00113685]
[1642628047350,0.00056842,3122.6,3122.2,0.00284212]
[1642628047750,0.00056842,3122.6,3122.2,0.51437762]
[1642628048150,0.00056842,3122.6,3122.3,0.39300154]
[1642628048350,0.00056842,3122.6,3122.5,0.39072785]
[1642628048553,0.00056842,3122.6,3122.3,0.39300154]
[1642628048754,0.00056842,3122.6,3122.5,0.3918647]
[1642628049415,0.00056842,3122.6,3122.5,0.9034002]
[1642628049617,0.00056842,3122.6,3122.5,0.3918647]
[1642628049815,0.00056842,3122.6,3122.5,0.9034002]
[1642628050016,0.00056842,3122.6,3122.5,0.3918647]
[1642628050222,0.00056842,3122.6,3122.5,0.9034002]
[1642628050418,0.00056842,3122.6,3122.5,0.3918647]
[1642628051122,0.00056842,3122.6,3122.5,0.9034002]
[1642628051718,0.00056842,3122.6,3122.5,1.98836901]
[1642628052118,0.00056842,3122.6,3122.5,2.49990451]
[1642628052950,0.00056842,3122.6,3122.5,2.50025486]
[1642628055253,0.00056842,3122.6,3122.5,0.9034002]
[1642628055454,0.00056842,3122.6,3122.5,1.99160739]
[1642628055654,0.00056842,3122.6,3122.5,2.50314289]
[1642628056457,0.00056842,3122.6,3122.5,0.9034002]
[1642628057506,0.00056842,3122.6,3122.5,3.80067759]
[1642628057705,0.00056842,3122.6,3122.5,4.80067759]
[1642628057909,0.00227369,3123.1,3122.8,0.39072785]
[1642628058107,0.00227369,3123.1,3123.0,0.39072785]
[1642628058308,3.7287,3123.7,3123.0,3.14423607]
[1642628058510,8.1753,3124.1,3123.2,0.39072785]
[1642628058711,8.1753,3124.1,3123.4,0.39072785]
[1642628058712,1.43763906,3124.0,3123.4,0.39072785]
[1642628058914,8.1753,3124.1,3123.6,0.39072785]
[1642628059112,0.00682108,3123.9,3123.8,0.39072785]
[1642628059311,0.00682108,3123.9,3123.8,0.90226335]
[1642628059513,0.47863891,3123.9,3123.8,0.39072785]
[1642628059712,0.47863891,3123.9,3123.8,4.00420586]
[1642628059911,0.47863891,3123.9,3123.8,2.20226335]
[1642628060112,0.47863891,3123.9,3123.8,1.90226335]
[1642628060964,0.47863891,3123.9,3123.8,0.90226335]
[1642628061362,2.54192608,3123.9,3123.8,0.39072785]
[1642628061562,2.54192608,3123.9,3123.8,0.90226335]
[1642628061965,2.54192608,3123.9,3123.8,0.39072785]
[1642628062563,2.54192608,3123.9,3123.8,0.90226335]
[1642628062762,2.54192608,3123.9,3123.8,0.39072785]
[1642628063269,2.54192608,3123.9,3123.8,0.90226335]
[1642628063464,2.54192608,3123.9,3123.8,0.38675101]
[1642628063664,2.54192608,3123.9,3123.8,0.89828651]
[1642628064520,2.54192608,3123.9,3123.8,0.38675101]
[1642628064922,2.54192608,3123.9,3123.8,0.89828651]
[1642628065123,2.54192608,3123.9,3123.8,0.38675101]
[1642628065325,2.54192608,3123.9,3123.8,0.89828651]
[1642628065326,4.08624386,3123.9,3123.8,0.89828651]
[1642628065527,4.08624386,3123.9,3123.8,0.38675101]
[1642628065726,4.08624386,3123.9,3123.8,0.89828651]
[1642628065931,4.08624386,3123.9,3123.8,0.38675101]
[1642628066127,4.08624386,3123.9,3123.8,0.89828651]
[1642628066327,4.08624386,3123.9,3123.8,0.38675101]
[1642628066528,4.12638623,3123.9,3123.8,0.89828651]
[1642628067227,4.12638623,3123.9,3123.8,0.38675101]
[1642628067526,4.12638623,3123.9,3123.8,0.89828651]
[1642628067727,4.12638623,3123.9,3123.8,0.38675101]
[1642628068561,4.12638623,3123.9,3123.8,0.89828651]
[1642628068762,4.12638623,3123.9,3123.8,0.38675101]
[1642628068963,4.12638623,3123.9,3123.8,0.89828651]
[1642628069361,4.12638623,3123.9,3123.8,0.38675101]
[1642628069561,4.12638623,3123.9,3123.8,0.89828651]
[1642628069761,4.12638623,3123.9,3123.8,0.38675101]
[1642628069965,4.12638623,3123.9,3123.8,0.89828651]
[1642628070463,4.12638623,3123.9,3123.8,0.38675101]
[1642628070664,4.12638623,3123.9,3123.8,0.89828651]
[1642628071266,4.12638623,3123.9,3123.8,0.38675101]
[1642628071614,4.12638623,3123.9,3123.8,0.89828651]
[1642628072612,4.12638623,3123.9,3123.8,0.38675101]
[1642628072814,4.12638623,3123.9,3123.8,0.89828651]
[1642628073011,4.12638623,3123.9,3123.8,0.38675101]
[1642628073214,4.12638623,3123.9,3123.8,0.89828651]
[1642628073414,4.12638623,3123.9,3123.8,0.38675101]
[1642628073615,4.12638623,3123.9,3123.8,0.89828651]
[1642628073813,4.12638623,3123.9,3123.8,0.38675101]
[1642628074013,4.12638623,3123.9,3123.8,0.89828651]
[1642628074217,4.12638623,3123.9,3123.8,0.38675101]
[1642628075218,2.54192608,3123.9,3123.8,0.38675101]
[1642628075462,2.54192608,3123.9,3123.8,0.89828651]
[1642628075663,2.54192608,3123.9,3123.8,0.38675101]
[1642628076564,2.54192608,3123.9,3123.8,0.89828651]
[1642628076966,2.54192608,3123.9,3123.8,0.38675101]
[1642628077464,2.54192608,3123.9,3123.8,0.89828651]
[1642628077664,4.12786239,3123.9,3123.8,0.38675101]
[1642628077866,2.54192608,3123.9,3123.8,0.89828651]
[1642628078164,2.54192608,3123.9,3123.8,0.38675101]
[1642628078770,2.54192608,3123.9,3123.8,0.89828651]
[1642628078965,2.54192608,3123.9,3123.8,0.38675101]
[1642628079410,2.54192608,3123.9,3123.8,0.89828651]
[1642628079808,4.12781367,3123.9,3123.8,0.89828651]
[1642628080010,2.54192608,3123.9,3123.8,0.38675101]
[1642628080413,2.54192608,3123.9,3123.8,0.89828651]
[1642628080814,2.54192608,3123.9,3123.8,0.38675101]
[1642628081016,2.54192608,3123.9,3123.8,0.89828651]
[1642628081515,2.54192608,3123.9,3123.8,0.38675101]
[1642628081713,2.54192608,3123.9,3123.8,0.89828651]
[1642628081916,2.54192608,3123.9,3123.8,0.38675101]
[1642628082114,2.54192608,3123.9,3123.8,0.89828651]
[1642628082315,2.54192608,3123.9,3123.8,0.38675101]
[1642628082515,2.54192608,3123.9,3123.8,0.89828651]
[1642628082868,2.54192608,3123.9,3123.8,0.38675101]
[1642628083069,2.54192608,3123.9,3123.8,0.89828651]
[1642628083670,2.54192608,3123.9,3123.8,0.38675101]
[1642628084072,4.14437766,3123.9,3123.8,0.89828651]
[1642628084272,4.14437766,3123.9,3123.8,0.38675101]
[1642628084974,2.54192608,3123.9,3123.8,0.89828651]
[1642628085373,4.14493867,3123.9,3123.8,0.38675101]
[1642628085577,4.14493867,3123.9,3123.8,0.89828651]
[1642628085779,4.14493867,3123.9,3123.8,0.38675101]
[1642628085977,4.14491329,3123.9,3123.8,0.89828651]
[1642628086177,4.14491329,3123.9,3123.8,0.38675101]
[1642628086382,4.14491329,3123.9,3123.8,0.89828651]
[1642628086383,2.54192608,3123.9,3123.8,0.89828651]
[1642628086621,2.54192608,3123.9,3123.8,0.38675101]
[1642628087016,2.54192608,3123.9,3123.8,0.89828651]
[1642628087017,0.47863891,3123.9,3123.8,0.89828651]
[1642628087317,0.47863891,3123.9,3123.8,0.51475101]
[1642628087716,0.47863891,3123.9,3123.8,1.02628651]
[1642628087917,0.47863891,3123.9,3123.8,0.38675101]
[1642628088115,0.47863891,3123.9,3123.8,0.89828651]
[1642628088316,0.47863891,3123.9,3123.8,0.38675101]
[1642628088717,0.47863891,3123.9,3123.8,0.89828651]
[1642628088921,0.47863891,3123.9,3123.8,0.38675101]
[1642628089319,2.66551127,3123.9,3123.8,0.89828651]
[1642628089519,2.65869019,3123.9,3123.8,0.38675101]
[1642628089720,2.18687236,3123.9,3123.8,0.89828651]
[1642628089920,2.18687236,3123.9,3123.8,0.38675101]
[1642628090119,2.18687236,3123.9,3123.8,0.89828651]
[1642628090360,2.18687236,3123.9,3123.8,0.38675101]
[1642628090765,2.18687236,3123.9,3123.8,0.89828651]
[1642628091164,3.78627875,3123.9,3123.8,0.38675101]
[1642628091369,3.78627875,3123.9,3123.8,0.89828651]
[1642628091571,3.78627875,3123.9,3123.8,0.38675101]
[1642628091572,4.37627875,3123.9,3123.8,0.38675101]
[1642628091766,4.37627875,3123.9,3122.8,2.5985297]
[1642628091973,2.89770639,3123.8,3122.9,1.08867056]
[1642628092169,1.59940639,3123.7,3123.0,1.08867056]
[1642628092368,1.59940639,3123.7,3122.7,1.59876128]
[1642628092369,0.128,3123.6,3123.1,1.08867056]
[1642628092569,2.06140639,3123.5,3123.2,1.08867056]
[1642628092768,1.72740639,3123.4,3123.3,1.08867056]
[1642628092969,3.48126777,3123.4,3123.3,1.08867056]
[1642628093167,3.48126777,3123.4,3122.7,0.00023158]
[1642628093368,1.88186138,3123.4,3122.7,0.00023158]
[1642628093567,1.61046412,3123.3,3122.7,0.00023158]
[1642628093969,0.00284212,3123.2,3122.7,0.00023158]
[1642628094411,1.21771708,3123.1,3122.7,0.00023158]
[1642628094810,0.00170527,3123.0,3122.7,0.00023158]
[1642628095212,1.21544339,3123.1,3122.7,1.08890214]
[1642628095213,0.12913685,3122.9,3122.7,1.08890214]
[1642628095418,0.12913685,3122.9,3122.8,1.08867056]
[1642628095616,0.12970527,3123.0,3122.8,1.08867056]
[1642628095817,0.12970527,3123.0,3122.7,0.00023158]
[1642628095818,0.00113685,3122.9,3122.7,0.00023158]
[1642628106768,0.128,3122.8,3122.7,0.00023158]
[1642628108068,0.00113685,3122.9,3122.7,0.00023158]
[1642628112018,0.00113685,3122.9,3122.7,1.09811041]
[1642628112418,0.00113685,3122.9,3122.7,0.00023158]
[1642628113869,0.00113685,3122.9,3122.7,1.09811041]
[1642628114068,0.00113685,3122.9,3122.8,1.09787883]
[1642628114568,0.00113685,3122.9,3122.7,0.00023158]
[1642628119038,0.00113685,3122.9,3122.1,1.09787883]
[1642628119040,3.0,3122.7,3122.1,1.09787883]
[1642628119235,0.59,3122.6,3122.1,1.09787883]
[1642628119432,0.59,3122.6,3122.2,0.00284212]
[1642628119833,1.17145318,3122.5,3122.2,0.00284212]
[1642628120036,0.128,3122.4,3122.2,0.00284212]
[1642628120475,2.16643045,3122.3,3122.2,0.00284212]
[1642628120669,2.62843045,3122.3,3122.2,0.00284212]
[1642628121370,3.42952045,3122.3,3122.2,0.00284212]
[1642628121971,4.6,3122.2,3122.0,0.128]
[1642628122172,0.462,3122.1,3122.0,0.128]
[1642628122568,0.462,3122.1,3122.0,1.0544961]
[1642628122569,0.5901,3122.1,3122.0,1.0544961]
[1642628123470,0.5901,3122.1,3122.0,0.12913684]
[1642628123871,0.462,3122.1,3122.0,0.12913684]
[1642628124126,21.15833009,3122.1,3120.7,3.39428604]
[1642628124324,0.80129,3121.8,3121.0,5.169]
[1642628124526,0.59,3121.7,3121.1,0.87611116]
[1642628124722,18.74,3121.6,3121.2,0.87611116]
[1642628124925,0.128,3121.5,3121.3,0.87533812]
[1642628125122,0.128,3121.5,3120.4,6.7675297]
[1642628125123,20.25746003,3121.4,3120.4,6.7675297]
[1642628125325,2.15690905,3121.3,3120.4,5.169]
[1642628125526,0.128,3121.2,3120.5,0.00454739]
[1642628126530,3.33330905,3121.3,3120.5,0.00454739]
[1642628126731,2.87130905,3121.3,3120.5,0.00454739]
[1642628127330,1.69490905,3121.3,3120.7,0.01217816]
[1642628127728,1.69490905,3121.3,3120.8,0.00284211]
[1642628127965,1.69490905,3121.3,3120.8,1.00284211]
[1642628128367,1.69490905,3121.3,3120.9,0.00227369]
[1642628129365,1.69490905,3121.3,3120.8,0.00284211]
[1642628130667,1.35380042,3121.2,3120.8,0.00284211]
[1642628131370,1.69490905,3121.3,3120.8,0.00284211]
[1642628132015,5.1801,3121.9,3120.9,0.128]
[1642628132418,5.1801,3121.9,3121.0,0.00170527]
[1642628132419,0.00113685,3121.5,3121.0,0.00170527]
[1642628132717,0.00113685,3121.5,3121.1,0.128]
[1642628132915,0.00113685,3121.5,3121.1,1.128]
[1642628133115,0.00113685,3121.5,3121.2,2.82170159]
[1642628133718,0.00113685,3121.5,3121.1,1.128]
[1642628134917,0.00113685,3121.5,3121.1,0.128]
[1642628138186,0.00113685,3121.5,3121.0,0.00170527]
[1642628138586,0.00113685,3121.5,3120.8,2.5985297]
[1642628138587,0.00113685,3121.5,3120.9,0.00227369]
[1642628139922,0.00113685,3121.5,3120.9,1.00227369]
[1642628140324,0.00113685,3121.5,3121.0,0.00170527]
[1642628141924,0.00113685,3121.5,3120.9,0.00227369]
[1642628143367,0.00113685,3121.5,3120.8,0.13084211]
[1642628143567,0.00113685,3121.5,3120.9,0.00227369]
[1642628145573,0.00113685,3121.5,3120.9,0.37767295]
[1642628145974,0.00113685,3121.5,3121.0,0.00170527]
[1642628146172,0.00113685,3121.5,3121.0,0.37710453]
[1642628146377,0.00113685,3121.5,3121.1,0.37539926]
[1642628146630,0.00113685,3121.5,3121.2,0.37539926]
[1642628146821,0.00113685,3121.5,3121.3,0.37539926]
[1642628147021,0.00113685,3121.5,3121.4,0.37539926]
[1642628147422,0.00113685,3121.5,3121.1,0.00113684]
[1642628148223,0.00113685,3121.5,3121.1,0.3765361]
[1642628148424,0.00113685,3121.5,3121.2,0.37539926]
[1642628148629,0.00113685,3121.5,3121.3,0.37539926]
[1642628148825,0.00113685,3121.5,3121.4,0.37539926]
[1642628149230,0.00113685,3121.5,3121.1,0.00113684]
[1642628149231,0.00113685,3121.5,3121.2,0.37539926]
[1642628149424,0.00113685,3121.5,3121.3,0.37539926]
[1642628149630,0.12913685,3121.5,3121.4,0.37539926]
[1642628149825,0.12913685,3121.5,3121.2,0.37539926]
[1642628150024,0.12913685,3121.5,3121.3,0.37539926]
[1642628150226,0.00113685,3121.5,3121.4,0.37539926]
[1642628150479,0.00113685,3121.5,3121.1,0.00113684]
[1642628150681,0.12913685,3121.5,3121.1,0.00113684]
[1642628150878,0.12913685,3121.5,3121.0,0.00170527]
[1642628152182,0.00113685,3121.5,3121.0,0.00170527]
[1642628152579,0.00113685,3121.5,3121.0,1.60023497]
[1642628152981,0.00113685,3121.5,3121.1,0.3765361]
[1642628153181,0.00113685,3121.5,3121.2,0.37539926]
[1642628153383,0.00113685,3121.5,3121.3,0.37539926]
[1642628153580,0.00113685,3121.5,3121.4,0.37539926]
[1642628154324,0.00113685,3121.5,3121.1,0.00113684]
[1642628154529,0.128,3121.4,3121.1,0.00113684]
[1642628154726,0.128,3121.4,3120.9,1.60080339]
[1642628154926,0.128,3121.4,3121.0,0.00170527]
[1642628155730,0.128,3121.4,3121.0,0.37710453]
[1642628155931,0.128,3121.4,3121.0,0.00170527]
[1642628156130,0.128,3121.4,3121.1,0.00113684]
[1642628156331,0.00113685,3121.5,3120.9,1.97620265]
[1642628156332,0.12913685,3121.5,3120.9,1.97620265]
[1642628156535,0.12913685,3121.5,3121.0,0.37539926]
[1642628156733,0.00113685,3121.5,3121.1,0.37539926]
[1642628157036,0.00113685,3121.5,3121.2,0.37539926]
[1642628157234,0.00113685,3121.5,3121.3,0.37539926]
[1642628157431,0.00113685,3121.5,3121.4,0.37539926]
[1642628157633,0.00113685,3121.5,3121.1,0.3765361]
[1642628157870,0.00113685,3121.5,3121.2,0.37539926]
[1642628158072,0.00113685,3121.5,3121.3,0.37539926]
[1642628158274,0.00113685,3121.5,3121.4,0.37539926]
[1642628158672,0.00113685,3121.5,3121.1,0.00113684]
[1642628159074,0.00113685,3121.5,3121.0,0.00170527]
[1642628159273,0.00113685,3121.5,3121.0,0.37710453]
[1642628159473,0.00113685,3121.5,3121.1,0.37539926]
[1642628159676,0.00113685,3121.5,3121.2,0.37539926]
[1642628159873,0.00113685,3121.5,3121.3,0.37539926]
[1642628160075,0.00113685,3121.5,3121.4,0.37539926]
[1642628160678,0.00113685,3121.5,3121.1,0.00113684]
[1642628161721,0.00113685,3121.5,3121.1,0.00018984]
[1642628161923,0.00151543,3121.4,3121.1,0.00018984]
[1642628162324,0.000947,3121.3,3121.2,1.5985297]
[1642628162721,0.000947,3121.3,3121.2,1.7265297]
[1642628163021,0.000947,3121.3,3121.2,0.50339926]
[1642628163220,0.000947,3121.3,3121.2,5.63223497]
[1642628163419,0.000947,3121.3,3121.2,5.65465732]
[1642628164019,0.000947,3121.3,3121.2,6.65465732]
[1642628164221,0.000947,3121.3,3121.2,3.90119381]
[1642628164419,0.000947,3121.3,3121.2,4.70208381]
[1642628164620,0.000147,3121.3,3121.2,2.30428926]
[1642628164825,0.000147,3121.3,3121.2,6.63748972]
[1642628165021,0.000147,3121.3,3121.2,3.20198363]
[1642628165470,0.000147,3121.3,3121.2,0.50339926]
[1642628166271,0.000147,3121.3,3121.2,2.93996343]
[1642628166473,0.000147,3121.3,3121.2,0.50339926]
[1642628167475,0.000147,3121.3,3121.2,1.75261979]
[1642628167671,0.000147,3121.3,3121.2,2.1280618]
[1642628167872,0.000147,3121.3,3121.2,0.50339926]
[1642628168471,0.000147,3121.3,3121.2,0.37539926]
[1642628168670,0.000147,3121.3,3121.2,1.62496931]
[1642628169721,0.000147,3121.3,3121.2,2.43515696]
[1642628169917,0.000147,3121.3,3121.2,3.81055622]
[1642628170130,0.000147,3121.3,3121.2,1.37539926]
[1642628170317,0.000147,3121.3,3121.2,4.05870423]
[1642628170526,0.000147,3121.3,3121.2,1.37539926]
[1642628171024,0.000147,3121.3,3121.2,4.0649535]
[1642628171523,0.000147,3121.3,3121.2,4.0741817]
[1642628171725,0.000147,3121.3,3121.2,1.37539926]
[1642628171924,0.000147,3121.3,3121.2,0.37539926]
[1642628172125,0.000147,3121.3,3121.2,1.97700926]
[1642628172424,0.000147,3121.3,3121.2,5.16312614]
[1642628172880,0.000147,3121.3,3121.2,9.9973488]
[1642628173079,0.000147,3121.3,3121.2,6.81123192]
[1642628173478,2.4300541,3122.5,3121.3,5.6]
[1642628173679,1.2437,3122.6,3122.2,1.62126883]
[1642628173880,0.00682108,3122.5,3122.2,1.62126883]
[1642628174077,1.53360011,3122.4,3122.2,1.99666809]
[1642628174280,1.53360011,3122.4,3122.3,0.37539926]
[1642628174281,1.53985277,3122.4,3122.3,0.37539926]
[1642628174479,1.53360011,3122.4,3122.3,0.37539926]
[1642628177619,0.128,3123.0,3122.3,0.37539926]
[1642628177823,3.049,3123.4,3122.1,2.70122752]
[1642628177824,2.34590957,3122.9,3122.4,3.05053724]
[1642628178022,2.34590957,3122.9,3122.2,0.3531]
[1642628178023,0.00682108,3122.5,3122.3,0.8051]
[1642628178424,0.00625266,3122.4,3122.3,0.8051]
[1642628178825,2.08484841,3122.4,3122.3,0.8051]
[1642628179026,2.08484841,3122.4,3122.3,1.0]
[1642628180024,2.08484841,3122.4,3121.9,1.62126883]
[1642628180478,2.47783552,3122.3,3121.6,1.0]
[1642628180678,2.34415128,3122.2,3121.6,1.0]
[1642628180873,2.34415128,3122.2,3121.4,4.85986883]
[1642628180874,2.34926709,3122.2,3121.4,4.85986883]
[1642628181073,0.00454739,3122.1,3121.3,1.62126883]
[1642628181473,1.3186,3122.3,3121.3,1.62126883]
[1642628181474,0.00397897,3122.0,3121.3,1.62126883]
[1642628181876,0.00341054,3121.9,3121.3,1.62126883]
[1642628182277,0.00284212,3121.8,3121.3,1.62126883]
[1642628182678,2.34508906,3122.2,3121.1,6.56226067]
[1642628182679,0.0022737,3121.7,3121.2,1.62126883]
[1642628182879,1.19895482,3121.6,3121.2,1.62126883]
[1642628183081,1.20066009,3121.6,3121.2,1.62126883]
[1642628183278,0.00113685,3121.5,3121.2,1.62126883]
[1642628183678,0.00113685,3121.5,3121.3,1.62126883]
[1642628184143,2.18639889,3121.4,3121.3,1.62126883]
[1642628184334,2.18639889,3121.4,3121.3,3.55]
[1642628184534,2.18639889,3121.4,3121.3,1.62567804]
[1642628184736,2.18639889,3121.4,3121.3,4.42578484]
[1642628184936,2.18639889,3121.4,3121.3,1.62578484]
[1642628186340,2.18639889,3121.4,3121.3,5.47442293]
[1642628186539,2.18639889,3121.4,3121.3,5.47376981]
[1642628186739,2.18639889,3121.4,3121.1,2.75146067]
[1642628186940,2.18639889,3121.4,3121.3,1.62364788]
[1642628187743,2.18639889,3121.4,3121.2,1.62364788]
[1642628187985,2.18639889,3121.4,3121.1,0.19155743]
[1642628187986,2.31439889,3121.4,3121.1,0.19155743]
[1642628188383,2.31439889,3121.4,3121.1,0.00018984]
[1642628189386,2.31439889,3121.4,3120.6,1.62364788]
[1642628189387,2.31439889,3121.4,3120.8,0.00284211]
[1642628189585,2.31439889,3121.4,3120.7,0.00341054]
[1642628190587,2.51028739,3121.3,3120.7,0.00341054]
[1642628190787,0.128,3121.2,3120.7,0.00341054]
[1642628191286,2.18639889,3121.4,3120.7,0.00341054]
[1642628191287,0.128,3121.3,3120.7,0.00341054]
[1642628191649,2.96969175,3121.2,3120.6,0.00397896]
[1642628191948,0.128,3121.1,3120.6,0.00397896]
[1642628192150,0.8995,3121.1,3120.6,0.00397896]
[1642628192750,2.96742133,3121.0,3120.6,0.00397896]
[1642628192954,2.63342133,3120.9,3120.6,0.00397896]
[1642628193150,5.112,3120.8,3120.7,0.20512006]
[1642628193350,1.47956207,3120.6,3120.1,0.00682108]
[1642628193557,0.128,3120.5,3119.9,1.62364788]